fUSD/lending_fUSD_20240216
["ID","MTS","AMOUNT","RATE_DAILY","PERIOD"]
[314227615,1708102244820,-1009.36561679,0.000488,30]
[314227616,1708102244833,-2409.35153101,0.000488,30]
[314227617,1708102244861,-1629.98094198,0.000488,30]
[314227618,1708102244874,-41822.00000155,0.000488,30]
[314227619,1708102244885,-660.00660538,0.000488,30]
[314227620,1708102244919,-331.50849412,0.000488,30]
[314227621,1708102244930,-1006.632,0.000488,30]
[314227622,1708102244942,-953.84846005,0.000488,30]
[314227623,1708102244954,-1254.22428961,0.000488,30]
[314227624,1708102244998,-1411.2,0.000488,30]
[314227625,1708102245084,-4910.02468899,0.000488,30]
[314227626,1708102245101,-1459.90539382,0.000488,30]
[314227627,1708102245484,-328.32741597,0.000488,30]
[314227629,1708102245495,-522.75010956,0.000488,30]
[314227631,1708102245508,-522.73036951,0.000488,30]
[314227633,1708102245520,-507.51139252,0.000488,30]
[314227641,1708102245619,-293.75433028,0.000488,30]
[314227642,1708102245656,-5680.52714249,0.000488,30]
[314227643,1708102245666,-3472.95344248,0.00048841,25]
[314227644,1708102245675,-1000.0,0.00048846,4]
[314227645,1708102245684,-7500.0,0.0004888,30]
[314227646,1708102245705,-155.0,0.00048967,30]
[314227647,1708102245717,-1000.0,0.00048984,31]
[314227648,1708102245727,-200.0,0.00048987,53]
[314227649,1708102245737,-200.0,0.00048987,52]
[314227650,1708102245747,-200.0,0.00048987,51]
[314227651,1708102245758,-200.0,0.00048987,50]
[314227652,1708102245768,-5000.0,0.00049,30]
[314227653,1708102245778,-40000.0,0.00049,120]
[314227654,1708102245790,-300.0,0.00049003,30]
[314227655,1708102245800,-343.0,0.0004903,30]
[314227656,1708102245810,-2249.58384886,0.0004904,5]
[314227657,1708102245820,-132429.47243946,0.000491,6]
[314227658,1708102245834,-4988.38340001,0.000491,6]
[314227659,1708102246393,-18700.15782462,0.000491,6]
[314227660,1708102246405,-480.95,0.000491,6]
[314227661,1708102246417,-1070.43220795,0.000491,6]
[314227662,1708102246428,-1643.40463971,0.000491,6]
[314227663,1708102246439,-6170.43691996,0.000491,6]
[314227664,1708102246450,-1560.92400188,0.000491,6]
[314227665,1708102246462,-11040.91489693,0.000491,6]
[314227666,1708102246474,-334.37839027,0.000491,6]
[314227667,1708102246684,-5352.16435569,0.000491,6]
[314227668,1708102246696,-2532.65786698,0.000491,6]
[314227669,1708102246708,-5001.35999951,0.000491,6]
[314227670,1708102246719,-10004.64924912,0.000491,6]
[314227671,1708102246732,-371609.00380791,0.000491,6]
[314227672,1708102246741,-9999.91,0.000491,6]
[314227673,1708102246751,-75332.71,0.000491,6]
[314227674,1708102246760,-37174.01,0.000491,6]
[314227675,1708102246770,-20394.38427712,0.000491,6]
[314227676,1708102246782,-404.871865,0.000491,6]
[314227677,1708102246797,-277.72999999,0.000491,6]
[314227678,1708102246809,-2330.17144606,0.000491,6]
[314227679,1708102246821,-8905.77445779,0.000491,6]
[314227680,1708102246833,-2375.11275444,0.000491,6]
[314227681,1708102247749,-3316.80182207,0.00046851,2]
[314227682,1708102247759,-595.58365537,0.00048394,2]
[314227683,1708102247781,-781.03587512,0.00048394,2]
[314227684,1708102247818,-769.84636083,0.00048394,2]
[314227685,1708102247831,-620.30278712,0.00048394,2]
[314227686,1708102247844,-4618.414303,0.00048394,2]
[314227687,1708102247854,-4574.8351996,0.000491,6]
[314227688,1708102247865,-27141.05547694,0.000491,6]
[314227689,1708102247883,-439.59131871,0.000491,6]
[314227690,1708102247896,-7213.90806328,0.000491,6]
[314227691,1708102247908,-952.86685494,0.000491,6]
[314227692,1708102247927,-1700.23043579,0.000491,6]
[314227693,1708102247948,-17843.60785034,0.000491,6]
[314227694,1708102247958,-5495.28,0.000491,6]
[314227695,1708102247967,-53081.94359459,0.000491,6]
[314227696,1708102247979,-80259.37640541,0.000491,6]
[314227697,1708102247989,-52706.15,0.000491,6]
[314227698,1708102247999,-30545.21081941,0.000491,6]
[314227699,1708102248013,-1848.08264064,0.000491,6]
[314227700,1708102248027,-501.23073282,0.000491,6]
[314227701,1708102248051,-28382.17580713,0.000491,6]
[314227702,1708102248065,-153.8117539,0.00049101,30]
[314227703,1708102248074,-569.11338012,0.0004914,25]
[314227704,1708102248086,-2903.84006236,0.0004914,25]
[314227705,1708102248096,-151.021737,0.00049198,38]
[314227706,1708102248105,-6880.33989207,0.00049209,10]
[314227707,1708102248115,-510.30003893,0.00049215,2]
[314227708,1708102248125,-600.00013582,0.0004922,10]
[314227709,1708102248135,-22525.34489138,0.00049231,10]
[314227710,1708102248148,-38456.55600366,0.00049231,10]
[314227711,1708102248160,-110930.09910496,0.00049231,10]
[314227712,1708102248170,-768.6818043,0.000493,120]
[314227713,1708102248180,-576.84669969,0.000493,30]
[314227714,1708102248190,-150.28,0.000493,7]
[314227715,1708102248199,-508.15365145,0.00049315,60]
[314227716,1708102248209,-160.32227125,0.00049315,2]
[314227717,1708102248219,-631.52918437,0.00049315,60]
[314227718,1708102248228,-516.2301372,0.00049315,60]
[314227719,1708102248238,-510.89949431,0.00049315,60]
[314227720,1708102248247,-330.50213293,0.00049315,60]
[314227721,1708102248257,-251.25460611,0.00049315,60]
[314227722,1708102248266,-537.87140915,0.00049315,60]
[314227723,1708102248275,-505.44107839,0.00049315,60]
[314227724,1708102248285,-500.0,0.00049315,60]
[314227725,1708102248297,-503.34868144,0.00049315,60]
[314227726,1708102248307,-500.0,0.00049315,60]
[314227727,1708102248316,-491.39275006,0.00049315,60]
[314227728,1708102248326,-165.24861018,0.00049315,60]
[314227729,1708102248338,-500.0,0.00049315,60]
[314227730,1708102248348,-1000.0,0.00049315,2]
[314227731,1708102248358,-401.32721158,0.00049315,60]
[314227732,1708102248368,-500.0,0.00049315,60]
[314227733,1708102248378,-500.0,0.00049315,60]
[314227734,1708102248389,-500.0,0.00049315,60]
[314227735,1708102248399,-504.57486743,0.00049315,60]
[314227736,1708102248409,-500.0,0.00049315,60]
[314227737,1708102248419,-500.0,0.00049315,60]
[314227738,1708102248428,-568.48217008,0.00049315,60]
[314227739,1708102248438,-500.0,0.00049315,60]
[314227740,1708102248448,-537.39345048,0.00049315,60]
[314227741,1708102248458,-500.0,0.00049315,60]
[314227742,1708102248467,-500.0,0.00049315,60]
[314227743,1708102248477,-507.55425569,0.00049315,60]
[314227744,1708102248486,-267.78612373,0.00049315,60]
[314227745,1708102248495,-500.0,0.00049315,60]
[314227746,1708102248505,-500.0,0.00049315,60]
[314227747,1708102248515,-500.0,0.00049315,60]
[314227748,1708102248524,-500.0,0.00049315,60]
[314227749,1708102248534,-500.0,0.00049315,60]
[314227750,1708102248546,-500.0,0.00049315,60]
[314227751,1708102248555,-500.0,0.00049315,60]
[314227752,1708102248565,-500.0,0.00049315,60]
[314227753,1708102248574,-500.0,0.00049315,60]
[314227754,1708102248584,-500.0,0.00049315,60]
[314227755,1708102248593,-500.0,0.00049315,60]
[314227756,1708102248602,-500.0,0.00049315,60]
[314227757,1708102248612,-150.0,0.00049315,60]
[314227758,1708102248621,-500.0,0.00049315,60]
[314227759,1708102248630,-634.95946512,0.00049315,60]
[314227760,1708102248640,-515.48972338,0.00049315,60]
[314227761,1708102248649,-500.0,0.00049315,60]
[314227762,1708102248659,-500.0,0.00049315,60]
[314227763,1708102248669,-500.0,0.00049315,60]
[314227764,1708102248678,-500.0,0.00049315,60]
[314227765,1708102248687,-500.0,0.00049315,60]
[314227766,1708102248697,-500.0,0.00049315,60]
[314227767,1708102248707,-500.0,0.00049315,60]
[314227768,1708102248716,-500.0,0.00049315,60]
[314227769,1708102248727,-500.0,0.00049315,60]
[314227770,1708102248737,-500.0,0.00049315,60]
[314227771,1708102248747,-500.0,0.00049315,60]
[314227772,1708102248757,-500.0,0.00049315,60]
[314227773,1708102248767,-500.0,0.00049315,60]
[314227774,1708102248776,-500.0,0.00049315,60]
[314227775,1708102248785,-500.0,0.00049315,60]
[314227776,1708102248799,-500.0,0.00049315,60]
[314227777,1708102248809,-500.0,0.00049315,60]
[314227778,1708102248818,-500.0,0.00049315,60]
[314227779,1708102248828,-500.0,0.00049315,60]
[314227780,1708102248837,-500.0,0.00049315,60]
[314227781,1708102248847,-500.0,0.00049315,60]
[314227782,1708102248857,-500.0,0.00049315,60]
[314227783,1708102248866,-500.0,0.00049315,60]
[314227784,1708102248875,-500.0,0.00049315,60]
[314227785,1708102248885,-500.0,0.00049315,60]
[314227786,1708102248895,-500.0,0.00049315,60]
[314227787,1708102248904,-539.03340663,0.00049315,60]
[314227788,1708102248914,-500.0,0.00049315,60]
[314227789,1708102248923,-500.0,0.00049315,60]
[314227790,1708102248933,-500.0,0.00049315,60]
[314227791,1708102248942,-500.0,0.00049315,60]
[314227792,1708102248952,-314.25886305,0.00049315,60]
[314227793,1708102248961,-500.0,0.00049315,60]
[314227794,1708102248971,-500.0,0.00049315,60]
[314227795,1708102248981,-500.0,0.00049315,60]
[314227796,1708102248991,-500.0,0.00049315,60]
[314227797,1708102249001,-518.78427481,0.00049315,60]
[314227798,1708102249011,-500.0,0.00049315,60]
[314227799,1708102249025,-500.0,0.00049315,60]
[314227800,1708102249035,-500.0,0.00049315,60]
[314227801,1708102249047,-366.6887735,0.00049315,60]
[314227802,1708102249058,-500.0,0.00049315,60]
[314227803,1708102249067,-538.40794425,0.00049315,60]
[314227804,1708102249077,-550.91589625,0.00049315,60]
[314227805,1708102249087,-500.0,0.00049315,60]
[314227806,1708102249096,-500.0,0.00049315,60]
[314227807,1708102249106,-500.0,0.00049315,60]
[314227808,1708102249115,-1200.0,0.00049315,120]
[314227809,1708102249125,-554.59041483,0.00049315,60]
[314227810,1708102249134,-500.0,0.00049315,60]
[314227811,1708102249316,-155.0,0.00049315,60]
[314227812,1708102249326,-500.0,0.00049315,60]
[314227813,1708102249336,-500.0,0.00049315,60]
[314227814,1708102249345,-500.0,0.00049315,60]
[314227815,1708102249354,-500.0,0.00049315,60]
[314227816,1708102249363,-500.0,0.00049315,60]
[314227817,1708102249373,-500.0,0.00049315,60]
[314227818,1708102249382,-500.0,0.00049315,60]
[314227819,1708102249391,-500.0,0.00049315,60]
[314227820,1708102249401,-500.0,0.00049315,60]
[314227821,1708102249410,-203.52725583,0.00049315,60]
[314227822,1708102249419,-500.0,0.00049315,2]
[314227823,1708102249429,-500.0,0.00049315,7]
[314227824,1708102249438,-500.0,0.00049315,60]
[314227825,1708102249448,-500.0,0.00049315,60]
[314227826,1708102249458,-500.0,0.00049315,60]
[314227827,1708102249467,-500.0,0.00049315,60]
[314227828,1708102249477,-531.53777165,0.00049315,60]
[314227829,1708102249487,-500.0,0.00049315,60]
[314227830,1708102249497,-594.36509698,0.00049315,60]
[314227831,1708102249507,-500.0,0.00049315,60]
[314227832,1708102249516,-612.73631268,0.00049315,60]
[314227833,1708102249526,-500.0,0.00049315,60]
[314227834,1708102249536,-500.0,0.00049315,60]
[314227835,1708102249548,-500.0,0.00049315,60]
[314227836,1708102249559,-500.0,0.00049315,60]
[314227837,1708102249569,-500.0,0.00049315,60]
[314227838,1708102249578,-500.0,0.00049315,60]
[314227839,1708102249587,-500.0,0.00049315,60]
[314227840,1708102249597,-500.0,0.00049315,60]
[314227841,1708102249606,-634.36524472,0.00049315,60]
[314227842,1708102249616,-500.0,0.00049315,60]
[314227843,1708102249626,-500.0,0.00049315,60]
[314227844,1708102249636,-500.0,0.00049315,60]
[314227845,1708102249646,-530.82114059,0.00049315,60]
[314227846,1708102249655,-500.0,0.00049315,60]
[314227847,1708102249665,-500.0,0.00049315,60]
[314227848,1708102249676,-500.0,0.00049315,60]
[314227849,1708102249686,-596.81256675,0.00049315,60]
[314227850,1708102249695,-533.61319034,0.00049315,60]
[314227851,1708102249705,-500.0,0.00049315,60]
[314227852,1708102249715,-500.0,0.00049315,60]
[314227853,1708102249724,-500.0,0.00049315,60]
[314227854,1708102249735,-512.16055641,0.00049315,6]
[314227855,1708102249744,-500.0,0.00049315,60]
[314227856,1708102249754,-500.0,0.00049315,60]
[314227857,1708102249763,-500.0,0.00049315,60]
[314227858,1708102249773,-500.0,0.00049315,60]
[314227859,1708102249783,-500.0,0.00049315,60]
[314227860,1708102249796,-539.85614183,0.00049315,60]
[314227861,1708102249805,-500.0,0.00049315,60]
[314227862,1708102249814,-500.0,0.00049315,60]
[314227863,1708102249823,-500.0,0.00049315,60]
[314227864,1708102249832,-492.01002138,0.00049315,60]
[314227865,1708102249841,-500.0,0.00049315,60]
[314227866,1708102249850,-500.0,0.00049315,60]
[314227867,1708102249860,-511.58562721,0.00049315,60]
[314227868,1708102249869,-500.0,0.00049315,60]
[314227869,1708102249879,-500.0,0.00049315,60]
[314227870,1708102249888,-502.65276461,0.00049315,60]
[314227871,1708102249898,-500.0,0.00049315,60]
[314227872,1708102249907,-500.0,0.00049315,60]
[314227873,1708102249917,-512.61194325,0.00049315,60]
[314227874,1708102249927,-500.0,0.00049315,60]
[314227875,1708102249937,-500.0,0.00049315,60]
[314227876,1708102249947,-471.05010783,0.00049315,60]
[314227877,1708102249957,-500.0,0.00049315,60]
[314227878,1708102249966,-500.0,0.00049315,60]
[314227879,1708102249976,-500.0,0.00049315,60]
[314227880,1708102249986,-500.0,0.00049315,60]
[314227881,1708102249995,-500.0,0.00049315,60]
[314227882,1708102250005,-500.0,0.00049315,60]
[314227883,1708102250016,-500.0,0.00049315,60]
[314227884,1708102250026,-500.0,0.00049315,60]
[314227885,1708102250036,-598.02629423,0.00049315,60]
[314227886,1708102250050,-728.42,0.00049315,60]
[314227887,1708102250060,-500.0,0.00049315,60]
[314227888,1708102250070,-500.0,0.00049315,120]
[314227889,1708102250082,-500.0,0.00049315,60]
[314227890,1708102250092,-500.0,0.00049315,60]
[314227891,1708102250102,-500.0,0.00049315,60]
[314227892,1708102250112,-516.50897813,0.00049315,60]
[314227893,1708102250122,-1000.0,0.00049315,2]
[314227894,1708102250132,-550.72309253,0.00049315,60]
[314227895,1708102250143,-500.0,0.00049315,60]
[314227896,1708102250152,-500.0,0.00049315,60]
[314227897,1708102250162,-500.0,0.00049315,60]
[314227898,1708102250171,-518.60516131,0.00049315,60]
[314227899,1708102250181,-500.0,0.00049315,60]
[314227900,1708102250191,-533.87210018,0.00049315,60]
[314227901,1708102250201,-500.0,0.00049315,60]
[314227902,1708102250210,-500.0,0.00049315,60]
[314227903,1708102250220,-581.03214692,0.00049315,60]
[314227904,1708102250230,-500.0,0.00049315,60]
[314227905,1708102250240,-500.0,0.00049315,60]
[314227906,1708102250250,-500.0,0.00049315,60]
[314227907,1708102250261,-500.0,0.00049315,60]
[314227908,1708102250271,-517.03225957,0.00049315,60]
[314227909,1708102250282,-500.0,0.00049315,60]
[314227910,1708102250297,-196.47679997,0.00049315,60]
[314227911,1708102250307,-500.0,0.00049315,60]
[314227912,1708102250318,-500.0,0.00049315,60]
[314227913,1708102250327,-500.0,0.00049315,60]
[314227914,1708102250337,-500.0,0.00049315,60]
[314227915,1708102250347,-508.60302723,0.00049315,60]
[314227916,1708102250356,-500.0,0.00049315,30]
[314227917,1708102250366,-500.0,0.00049315,60]
[314227918,1708102250375,-1239.21,0.00049315,2]
[314227919,1708102250386,-500.0,0.00049315,60]
[314227920,1708102250396,-500.0,0.00049315,60]
[314227921,1708102250406,-175.11072735,0.00049315,60]
[314227922,1708102250415,-500.0,0.00049315,60]
[314227923,1708102250425,-500.0,0.00049315,60]
[314227924,1708102250434,-500.0,0.00049315,60]
[314227925,1708102250444,-500.0,0.00049315,60]
[314227926,1708102250453,-500.0,0.00049315,60]
[314227927,1708102250463,-500.0,0.00049315,60]
[314227928,1708102250472,-500.0,0.00049315,60]
[314227929,1708102250482,-500.0,0.00049315,60]
[314227930,1708102250491,-500.0,0.00049315,60]
[314227931,1708102250500,-547.49842367,0.00049315,60]
[314227932,1708102250510,-500.0,0.00049315,60]
[314227933,1708102250519,-500.0,0.00049315,60]
[314227934,1708102250529,-500.0,0.00049315,60]
[314227935,1708102250538,-500.0,0.00049315,60]
[314227936,1708102250553,-500.0,0.00049315,60]
[314227937,1708102250563,-500.0,0.00049315,60]
[314227938,1708102250573,-500.0,0.00049315,60]
[314227939,1708102250583,-500.0,0.00049315,60]
[314227940,1708102250593,-500.0,0.00049315,60]
[314227941,1708102250603,-523.65237791,0.00049315,60]
[314227942,1708102250613,-500.0,0.00049315,60]
[314227943,1708102250622,-522.5216001,0.00049315,60]
[314227944,1708102250631,-500.0,0.00049315,60]
[314227945,1708102250641,-502.18173536,0.00049315,60]
[314227946,1708102250650,-500.0,0.00049315,60]
[314227947,1708102250659,-500.0,0.00049315,60]
[314227948,1708102250669,-500.0,0.00049315,60]
[314227949,1708102250678,-500.0,0.00049315,60]
[314227950,1708102250687,-500.0,0.00049315,60]
[314227951,1708102250697,-500.0,0.00049315,60]
[314227952,1708102250706,-515.07,0.00049315,60]
[314227953,1708102250715,-500.0,0.00049315,60]
[314227954,1708102250724,-531.04545106,0.00049315,60]
[314227955,1708102250734,-500.0,0.00049315,60]
[314227956,1708102250745,-500.0,0.00049315,60]
[314227957,1708102250754,-500.0,0.00049315,60]
[314227958,1708102250763,-500.0,0.00049315,60]
[314227959,1708102250773,-500.0,0.00049315,60]
[314227960,1708102250782,-500.0,0.00049315,60]
[314227961,1708102250793,-500.0,0.00049315,60]
[314227962,1708102250803,-500.0,0.00049315,60]
[314227963,1708102250813,-500.0,0.00049315,60]
[314227964,1708102250823,-500.0,0.00049315,60]
[314227965,1708102250832,-500.0,0.00049315,60]
[314227966,1708102250842,-526.18487632,0.00049315,60]
[314227967,1708102250851,-512.70250666,0.00049315,60]
[314227968,1708102250861,-534.46300383,0.00049315,60]
[314227969,1708102250870,-500.0,0.00049315,60]
[314227970,1708102250880,-566.3119868,0.00049315,60]
[314227971,1708102250890,-500.0,0.00049315,60]
[314227972,1708102250900,-500.0,0.00049315,60]
[314227973,1708102250909,-500.0,0.00049315,60]
[314227974,1708102250919,-500.0,0.00049315,60]
[314227975,1708102250928,-214.26438064,0.00049315,60]
[314227976,1708102250938,-2000.0,0.00049315,60]
[314227977,1708102250948,-500.0,0.00049315,60]
[314227978,1708102250958,-540.42388242,0.00049315,60]
[314227979,1708102250968,-500.0,0.00049315,60]
[314227980,1708102250978,-500.0,0.00049315,60]
[314227981,1708102250988,-500.0,0.00049315,60]
[314227982,1708102250997,-500.0,0.00049315,60]
[314227983,1708102251008,-500.0,0.00049315,60]
[314227984,1708102251019,-500.0,0.00049315,60]
[314227985,1708102251028,-500.0,0.00049315,60]
[314227986,1708102251039,-500.0,0.00049315,60]
[314227987,1708102251053,-500.0,0.00049315,60]
[314227988,1708102251064,-500.0,0.00049315,60]
[314227989,1708102251074,-500.0,0.00049315,60]
[314227990,1708102251084,-500.0,0.00049315,60]
[314227991,1708102251094,-500.0,0.00049315,60]
[314227992,1708102251104,-500.0,0.00049315,60]
[314227993,1708102251114,-500.0,0.00049315,14]
[314227994,1708102251124,-500.0,0.00049315,60]
[314227995,1708102251134,-500.0,0.00049315,60]
[314227996,1708102251144,-500.0,0.00049315,60]
[314227997,1708102251154,-500.0,0.00049315,60]
[314227998,1708102251163,-551.15167729,0.00049315,60]
[314227999,1708102251172,-292.75557167,0.00049315,60]
[314228000,1708102251181,-504.87095262,0.00049315,60]
[314228001,1708102251191,-512.96686577,0.00049315,60]
[314228002,1708102251200,-500.0,0.00049315,60]
[314228003,1708102251209,-500.0,0.00049315,60]
[314228004,1708102251219,-1000.0,0.00049315,2]
[314228005,1708102251228,-554.37494902,0.00049315,60]
[314228006,1708102251237,-500.0,0.00049315,60]
[314228007,1708102251247,-500.0,0.00049315,60]
[314228008,1708102251256,-500.0,0.00049315,60]
[314228009,1708102251266,-500.0,0.00049315,60]
[314228010,1708102251276,-500.0,0.00049315,60]
[314228011,1708102251285,-500.0,0.00049315,60]
[314228012,1708102251297,-500.0,0.00049315,60]
[314228013,1708102251306,-180.37519096,0.00049315,60]
[314228014,1708102251316,-500.0,0.00049315,60]
[314228015,1708102251325,-500.0,0.00049315,60]
[314228016,1708102251334,-548.37111974,0.00049315,60]
[314228017,1708102251343,-500.0,0.00049315,60]
[314228018,1708102251353,-500.0,0.00049315,60]
[314228019,1708102251362,-506.22485569,0.00049315,60]
[314228020,1708102251372,-514.77099006,0.00049315,60]
[314228021,1708102251382,-500.0,0.00049315,60]
[314228022,1708102251391,-500.0,0.00049315,60]
[314228023,1708102251400,-500.0,0.00049315,60]
[314228024,1708102251409,-500.0,0.00049315,60]
[314228025,1708102251418,-500.0,0.00049315,60]
[314228026,1708102251428,-548.06257732,0.00049315,60]
[314228027,1708102251436,-500.0,0.00049315,60]
[314228028,1708102251446,-500.0,0.00049315,60]
[314228029,1708102251456,-500.0,0.00049315,60]
[314228030,1708102251466,-500.0,0.00049315,60]
[314228031,1708102251475,-500.0,0.00049315,60]
[314228032,1708102251485,-524.44314971,0.00049315,60]
[314228033,1708102251495,-500.0,0.00049315,60]
[314228034,1708102251505,-500.0,0.00049315,60]
[314228035,1708102251515,-500.0,0.00049315,2]
[314228036,1708102251524,-819.47,0.00049315,60]
[314228037,1708102251676,-500.0,0.00049315,60]
[314228038,1708102251686,-500.0,0.00049315,60]
[314228039,1708102251695,-500.0,0.00049315,60]
[314228040,1708102251705,-500.0,0.00049315,60]
[314228041,1708102251714,-500.0,0.00049315,60]
[314228042,1708102251724,-500.0,0.00049315,60]
[314228043,1708102251734,-567.66798973,0.00049315,60]
[314228044,1708102251744,-500.0,0.00049315,60]
[314228045,1708102251754,-303.24128676,0.00049315,60]
[314228046,1708102251763,-500.0,0.00049315,60]
[314228047,1708102251772,-500.0,0.00049315,60]
[314228048,1708102251781,-612.65,0.00049315,60]
[314228049,1708102251791,-500.0,0.00049315,60]
[314228050,1708102251802,-500.0,0.00049315,60]
[314228051,1708102251811,-500.0,0.00049315,60]
[314228052,1708102251821,-513.17046226,0.00049315,60]
[314228053,1708102251831,-500.0,0.00049315,60]
[314228054,1708102251840,-500.0,0.00049315,60]
[314228055,1708102251850,-500.0,0.00049315,60]
[314228056,1708102251859,-500.0,0.00049315,60]
[314228057,1708102251869,-506.68448336,0.00049315,60]
[314228058,1708102251878,-524.17,0.00049315,60]
[314228059,1708102251888,-500.0,0.00049315,60]
[314228060,1708102251897,-500.0,0.00049315,60]
[314228061,1708102251907,-559.69652454,0.00049315,60]
[314228062,1708102251916,-500.0,0.00049315,60]
[314228063,1708102251926,-562.5,0.00049315,60]
[314228064,1708102251936,-500.0,0.00049315,60]
[314228065,1708102251946,-500.0,0.00049315,60]
[314228066,1708102251957,-500.0,0.00049315,60]
[314228067,1708102251966,-500.0,0.00049315,60]
[314228068,1708102251975,-500.0,0.00049315,60]
[314228069,1708102251985,-500.0,0.00049315,60]
[314228070,1708102251994,-500.0,0.00049315,60]
[314228071,1708102252003,-500.0,0.00049315,60]
[314228072,1708102252014,-500.0,0.00049315,60]
[314228073,1708102252023,-693.58,0.00049315,60]
[314228074,1708102252032,-500.0,0.00049315,60]
[314228075,1708102252044,-500.0,0.00049315,60]
[314228076,1708102252053,-500.0,0.00049315,60]
[314228077,1708102252063,-500.0,0.00049315,60]
[314228078,1708102252072,-500.0,0.00049315,60]
[314228079,1708102252081,-500.0,0.00049315,60]
[314228080,1708102252091,-500.0,0.00049315,60]
[314228081,1708102252100,-159.40422881,0.00049315,60]
[314228082,1708102252109,-500.0,0.00049315,60]
[314228083,1708102252118,-500.0,0.00049315,60]
[314228084,1708102252129,-500.0,0.00049315,60]
[314228085,1708102252139,-500.0,0.00049315,60]
[314228086,1708102252148,-500.0,0.00049315,60]
[314228087,1708102252158,-500.0,0.00049315,60]
[314228088,1708102252168,-500.0,0.00049315,60]
[314228089,1708102252177,-500.0,0.00049315,60]
[314228090,1708102252187,-500.0,0.00049315,30]
[314228091,1708102252197,-574.39176215,0.00049315,60]
[314228092,1708102252207,-500.0,0.00049315,60]
[314228093,1708102252217,-1000.0,0.00049315,60]
[314228094,1708102252226,-500.0,0.00049315,60]
[314228095,1708102252236,-500.0,0.00049315,60]
[314228096,1708102252246,-500.0,0.00049315,60]
[314228097,1708102252257,-500.0,0.00049315,60]
[314228098,1708102252267,-578.17,0.00049315,60]
[314228099,1708102252282,-500.0,0.00049315,2]
[314228100,1708102252294,-500.0,0.00049315,60]
[314228101,1708102252304,-500.0,0.00049315,60]
[314228102,1708102252314,-594.54,0.00049315,60]
[314228103,1708102252323,-500.0,0.00049315,7]
[314228104,1708102252332,-530.51648897,0.00049315,60]
[314228105,1708102252341,-500.0,0.00049315,60]
[314228106,1708102252350,-500.0,0.00049315,60]
[314228107,1708102252360,-506.2,0.00049315,60]
[314228108,1708102252369,-500.0,0.00049315,60]
[314228109,1708102252378,-500.0,0.00049315,60]
[314228110,1708102252387,-500.0,0.00049315,60]
[314228111,1708102252396,-506.75399928,0.00049315,60]
[314228112,1708102252406,-500.0,0.00049315,60]
[314228113,1708102252415,-500.0,0.00049315,2]
[314228114,1708102252424,-500.0,0.00049315,60]
[314228115,1708102252434,-500.0,0.00049315,4]
[314228116,1708102252443,-500.0,0.00049315,60]
[314228117,1708102252452,-500.0,0.00049315,60]
[314228118,1708102252461,-500.0,0.00049315,60]
[314228119,1708102252470,-525.24057595,0.00049315,60]
[314228120,1708102252480,-524.53946914,0.00049315,60]
[314228121,1708102252489,-500.0,0.00049315,60]
[314228122,1708102252499,-499.59027643,0.00049315,60]
[314228123,1708102252509,-542.82284887,0.00049315,60]
[314228124,1708102252518,-500.0,0.00049315,60]